Cogmind - Beta 16.1 @@@ ROGUE MODE // 2026.04.05 @ 02:24:35 Player: KURIIRI Result: Self-destructed Performance ------------- Evolutions (0) 0 Regions Visited (3) 600 Robots Destroyed (31) 155 Value Destroyed (802) 802 Prototype IDs (17) 340 Alien Tech Used (0) 0 Bonus (300) 300 TOTAL SCORE: 2197 Bonus ------- Registered with UFD 300 Cogmind --------- Core Integrity 132/250 Matter 44/300 Energy 290/290 System Corruption 0% Temperature Cool (0) Movement Rolling (145) Ox3 Location -7/Scraptown Parts ------- > --- POWER (1) -------- Improved Deuterium Engine > --- PROPULSION (2) --- Armored Huge Wheel > --- UTILITY (2) ------ Huge Storage Unit > --- WEAPON (2) ------- Salvaging Laser Overtuned Barrage Gun > --- INVENTORY (25) --- Deuterium Engine Nuclear Core Nuclear Core Light Nuclear Core Light Treads Overtuned Medium Treads Overtuned Scrapsphere Scrap Suit Compact Matter Pod (0) Makeshift Light Armor Plating Hardlight Generator Spread Laser Spread Laser Spread Laser Spread Laser Improved EM Pulse Cannon Light Assault Rifle Subdweller Machine Gun Overtuned Barrage Gun Overtuned Barrage Gun Advanced Assault Cannon Grenade Launcher Multitool Power Maul Peak State ------------ > --- POWER ------------ Improved Deuterium Engine > --- PROPULSION ------- Armored Huge Wheel > --- UTILITY ---------- Scrapoid Pod > --- WEAPON ----------- Salvaging Laser Overtuned Barrage Gun > --- INVENTORY -------- Overtuned Medium Treads Overtuned Scrapsphere Multitool [Rating: 29] Favorites ----------- Power Improved Deuterium Engine Engine Improved Deuterium Engine Propulsion Armored Huge Wheel Treads Light Treads Leg Aluminum Leg Wheel Armored Huge Wheel Utility Huge Storage Unit Device Improved Terrain Scanner Storage Huge Storage Unit Hackware Makeshift System Shield Weapon Overtuned Barrage Gun Energy Gun Salvaging Laser Energy Cannon Subdweller Beam Cannon Ballistic Gun Overtuned Barrage Gun Launcher Grenade Launcher Build | -11 -10 -10 -7 ------- Run | Yrd Mat Sub Scr Slots Evolved . | . . . . Power . | . . . . Propulsion . | . . . . Utility . | . . . . Weapon . | . . . . Parts Attached 26 | 1 10 6 9 Power 4 | . 1 . 3 Engine 4 | . 1 . 3 Core . | . . . . Reactor . | . . . . Propulsion 5 | . 2 2 1 Treads 2 | . 2 . . Leg . | . . . . Wheel 3 | . . 2 1 Hover . | . . . . Flight . | . . . . Utility 7 | 1 2 1 3 Device 3 | 1 1 . 1 Storage 2 | . 1 1 . Processor . | . . . . Hackware 2 | . . . 2 Protection . | . . . . Artifact . | . . . . Weapon 10 | . 5 3 2 Energy Gun 4 | . 3 . 1 Energy Cannon 2 | . . 2 . Ballistic Gun 3 | . 1 1 1 Ballistic Cannon . | . . . . Launcher 1 | . 1 . . Special Weapon . | . . . . Impact Weapon . | . . . . Slashing Weapon . | . . . . Piercing Weapon . | . . . . Special Melee Weapon . | . . . . Unidentified Prototypes . | . . . . Parts Lost 3 | . 2 1 . Power 1 | . 1 . . Propulsion . | . . . . Utility 1 | . . 1 . Weapon 1 | . 1 . . Highest Loss Streak 1 | . 1 1 . To Critical Strikes . | . . . . Average Backups 16 | 6 10 21 17 Power 1 | 1 1 4 1 Propulsion 3 | 4 3 4 2 Utility 4 | . 2 5 4 Weapon 6 | 1 2 6 7 Tool/Special . | . . . . Unused Backups 42 | . 5 . 37 Power 8 | . 1 . 7 Propulsion 8 | . 2 . 6 Utility 15 | . 2 . 13 Weapon 10 | . . . 10 Tool/Special 1 | . . . 1 Average Slot Usage (%) 84 | . 98 87 79 Engine 13 | . 12 14 14 Treads 5 | . 24 2 . Wheel 13 | . . 25 15 Device 4 | . 14 2 2 Storage 12 | . 14 14 11 Hackware 5 | . . . 8 Energy Gun 13 | . 26 8 11 Energy Cannon 3 | . . 16 1 Ballistic Gun 9 | . . 3 13 Peak Build Rating 29 | 9 12 12 29 Average Rating 19 | 6 9 11 24 On Entrance 9 | 6 9 11 12 Avg Prop Armor Cover (%) . | . . . . Naked Turns . | . . . . Heaviest Build 99 | 11 30 99 96 Greatest Support 40 | 20 40 40 28 Greatest Overweight (x) 3 | . 1 3 3 Average Overweight (x) 1 | . . 2 2 Largest Inventory Capacity 25 | 8 15 25 25 Average Capacity 20 | 8 14 24 20 Most Carried 25 | 6 15 25 25 Average Carried 17 | 6 10 22 18 Final Capacity 25 | 8 15 25 25 Final Carried 25 | 6 15 25 25 Class Distribution -------------------- 100% | Mutant Dominant Class ---------------- Mutant | -10/Materials Mutant | -10/Subcaves Mutant | -7/Scraptown Resources | -11 -10 -10 -7 ----------- Run | Yrd Mat Sub Scr Matter Collected 1140 | 206 230 60 644 Remotely . | . . . . Salvage Created 1092 | 87 875 130 . Parts 65 | 6 52 7 . Haulers Intercepted 2 | . 2 . . Recyclers Shooed . | . . . . Parts Field Recycled . | . . . . Retrieved Matter . | . . . . Parts Self-Destructed 5 | . . 5 . Prevented . | . . . . Parts Restored . | . . . . Kills | -11 -10 -10 -7 ------- Run | Yrd Mat Sub Scr Combat Hostiles Destroyed 19 | . 16 3 . Guns 16 | . 14 2 . Cannons 1 | . . 1 . AOE 2 | . 2 . . Classes Destroyed 9 | 2 5 2 . Worker 3 | . 3 . . Builder 1 | . 1 . . Tunneler 1 | 1 . . . Hauler 2 | . 2 . . Recycler 2 | 1 1 . . Watcher 3 | . 3 . . Grunt 16 | . 16 . . Artisan 1 | . . 1 . Subdweller 3 | . . 3 . Best Kill Streak 4 | 2 4 2 . Combat Bots Only 3 | . 3 2 . Max Kills in Single Turn 2 | 1 2 1 . Gunslinging 1 | . 1 . . Exploded 2 | . 2 . . Melee . | . . . . Uniques/NPCs Destroyed . | . . . . Combat | -11 -10 -10 -7 -------- Run | Yrd Mat Sub Scr Hostile Shots Fired 72 | . 60 12 . Missed 37 | . 29 8 . Hits 35 | . 31 4 . Projectile 35 | . 31 4 . Damage Taken 489 | . 391 98 . Core 118 | . 118 . . Absorbed by Shields . | . . . . Core Remaining (%) 100 | 100 . . . Volleys Fired 83 | 6 62 15 . Largest 2 | 2 2 2 . Hottest 160 | 60 130 160 . Shots Fired 158 | 12 119 27 . Gun 139 | 12 117 10 . Cannon 17 | . . 17 . Launcher 2 | . 2 . . Special . | . . . . Kinetic 15 | 6 9 . . Thermal 105 | 6 72 27 . Explosive 2 | . 2 . . Electromagnetic 36 | . 36 . . Robot Hit Streak 15 | 3 12 15 . Robot Miss Streak 4 | 1 4 4 . Penetration Max . | . . . . Secondary Targets 2 | . 1 1 . Max Gunslinging Chain 1 | . 1 1 . Shots Hit Robots 113 | 7 89 17 . Core Hits 89 | 3 71 15 . Critical Kills . | . . . . Critical Parts Destroyed . | . . . . Critical Strikes 3 | . 3 . . Corrupt 3 | . 3 . . Melee Attacks . | . . . . Impact . | . . . . Slashing . | . . . . Piercing . | . . . . Sneak Attacks . | . . . . Combat Hostiles . | . . . . Follow-up Attacks . | . . . . Damage Inflicted 1887 | 78 1430 379 . Guns 1433 | 78 1169 186 . Cannons 193 | . . 193 . Explosions 240 | . 240 . . Melee . | . . . . Ramming 21 | . 21 . . Kinetic 84 | 27 57 . . Thermal 1231 | 51 801 379 . Explosive 145 | . 145 . . Electromagnetic 406 | . 406 . . Impact . | . . . . Slashing . | . . . . Piercing . | . . . . Highest Corruption . | . . . . Average Corruption . | . . . . Corruption Purged . | . . . . Corruption Blocked . | . . . . Overload Shots . | . . . . Overflow Damage . | . . . . Projectiles . | . . . . Explosions . | . . . . Melee . | . . . . Knockbacks . | . . . . Impact . | . . . . Kinetic . | . . . . Secondary . | . . . . Self-Inflicted Damage 15 | . 15 . . Shots 1 | . 1 . . Rammed 6 | . 6 . . Targets Rammed 6 | . 6 . . Kicked . | . . . . Crushed . | . . . . Highest Temperature 156 | 40 138 156 . Average Temperature 48 | 17 48 65 . Received Heat Transfer 231 | . 216 15 . Siege Activations . | . . . . Martial Activations . | . . . . Shielding Activations . | . . . . Robots Disrupted . | . . . . Combat Hostiles . | . . . . Robots Corrupted . | . . . . Combat Hostiles . | . . . . Parts Fried 3 | . 3 . . Impact Corruptions . | . . . . Robots Melted . | . . . . Combat Hostiles . | . . . . Parts Melted . | . . . . Heat Transferred 2014 | 125 1395 494 . Parts Sabotaged . | . . . . Parts Stolen . | . . . . Parts Stripped . | . . . . Power Chain Reactions 1 | . 1 . . Alert | -11 -10 -10 -7 ------- Run | Yrd Mat Sub Scr Maximum Alert Level . | . . . . Low Security (%) 100 | 100 100 . . Level 1 . | . . . . Level 2 . | . . . . Level 3 . | . . . . Level 4 . | . . . . Level 5 . | . . . . High Security . | . . . . Max Security . | . . . . Peak Influence 162 | 10 162 . . Initial . | . . . . Average 74 | 2 76 . . Influence Increases 597 | 10 587 . . Destroy 0b10 Robot/C 320 | . 320 . . Destroy 0b10 Robot/NC 60 | 10 50 . . Destroy Leader 70 | . 70 . . Successful Hack 38 | . 38 . . Select Force Hacks 30 | . 30 . . Disable Machine 30 | . 30 . . Destroy Structure 49 | . 49 . . Influence Decreases 597 | 10 496 91 . Entered New Map 44 | . . 44 . Time Decay 533 | 10 476 47 . Lost Part 20 | . 20 . . Squads Dispatched 3 | . 3 . . Investigation 3 | . 3 . . Extermination . | . . . . Reinforcement . | . . . . Assault . | . . . . Garrison . | . . . . Intercept . | . . . . Searches Triggered . | . . . . Construction Impeded . | . . . . Haulers Reinforced . | . . . . Active Scanning Responses . | . . . . Cargo Convoy Interrupts . | . . . . Stealth | -11 -10 -10 -7 --------- Run | Yrd Mat Sub Scr Distress Signals 1 | . 1 . . Communications Jammed . | . . . . Distress Signals . | . . . . Times Spotted 34 | . 29 5 . Peak Tracking Total 4 | . 4 3 . Tactical Retreats . | . . . . Traps | -11 -10 -10 -7 ------- Run | Yrd Mat Sub Scr Traps Triggered . | . . . . Indirectly . | . . . . Trap Hack Attempts . | . . . . Triggered . | . . . . Disarmed . | . . . . Reprogrammed . | . . . . Reused . | . . . . Traps Extracted . | . . . . Installed . | . . . . Triggered . | . . . . Machines | -11 -10 -10 -7 ---------- Run | Yrd Mat Sub Scr Machines Disabled 2 | . 2 . . Max in Single Turn 2 | . 2 . . Machines Repaired . | . . . . Machines Dismantled . | . . . . Machines Sabotaged . | . . . . Overloaded Fab Kills . | . . . . Hacking | -11 -10 -10 -7 --------- Run | Yrd Mat Sub Scr Machines Accessed 13 | . 9 1 3 Terminals 8 | . 8 . . Fabricators . | . . . . Repair Stations . | . . . . Recycling Units 1 | . 1 . . Scanalyzers . | . . . . Garrison Access . | . . . . Total Hacks 42 | . 27 1 14 Successful 32 | . 17 1 14 Failed 10 | . 10 . . Catastrophic . | . . . . Database Lockouts . | . . . . Manual 20 | . 20 . . Terminals 26 | . 26 . . Fabricators . | . . . . Repair Stations . | . . . . Recycling Units 1 | . 1 . . Scanalyzers . | . . . . Garrison Access . | . . . . Terminal Hacks 20 | . 5 1 14 Record 8 | . . . 8 Robot Analysis 7 | . 1 . 6 Prototype ID Bank 2 | . 2 . . Locate Traps 2 | . 2 . . Proto ID Catalog 1 | . . 1 . Fabricator Hacks . | . . . . Repair Station Hacks . | . . . . Recycling Unit Hacks . | . . . . Scanalyzer . | . . . . Garrison Access Hacks . | . . . . Unauthorized Hacks 12 | . 12 . . Terminals 11 | . 11 . . Botnet 2 | . 2 . . Operators 2 | . 2 . . Skim 7 | . 7 . . Fabricators . | . . . . Repair Stations . | . . . . Recycling Units 1 | . 1 . . Tunnel 1 | . 1 . . Scanalyzers . | . . . . Garrison Access . | . . . . Data Cores Recovered . | . . . . Used . | . . . . Hacking Detections 7 | . 7 . . Full Trace Events . | . . . . Feedback Events . | . . . . Feedback Blocked . | . . . . Robot Schematics Acquired . | . . . . Robots Built . | . . . . Authchips . | . . . . Time . | . . . . Total Robot Build Rating . | . . . . Part Schematics Acquired . | . . . . Parts Built . | . . . . Authchips . | . . . . Time . | . . . . Total Part Build Rating . | . . . . Part Studies Acquired . | . . . . Parts Repaired . | . . . . Time . | . . . . Parts Recycled . | . . . . Recycled Matter . | . . . . Retrieved Matter . | . . . . Retrieved Components . | . . . . Parts Scanalyzed . | . . . . Part Schematics Acquired . | . . . . Parts Damaged . | . . . . Bothacking | -11 -10 -10 -7 ------------ Run | Yrd Mat Sub Scr Used RIF Installer . | . . . . Robots Hacked . | . . . . Non-combat . | . . . . Combat . | . . . . Robot Hacks Applied . | . . . . Relay Couplers Released . | . . . . Fabnet Peak Effective % . | . . . . Robots Rewired . | . . . . Allies Hacked . | . . . . Hacks Repelled . | . . . . Allies | -11 -10 -10 -7 -------- Run | Yrd Mat Sub Scr Total Allies 6 | . . . 6 Largest Group 6 | . . . 6 Highest-Rated Group 303 | . . . 303 Highest-Rated Ally 65 | . . . 65 Total Orders . | . . . . Ally Attacks . | . . . . Total Damage . | . . . . Kills . | . . . . Allies Corrupted . | . . . . Allies Melted . | . . . . Intel | -11 -10 -10 -7 ------- Run | Yrd Mat Sub Scr Active Infowar (turns) 754 | 7 747 . . Terrain 754 | 7 747 . . Robot Analysis Total 7 | . 1 . 6 Derelict Logs Recovered 5 | . . 1 4 Drone Launches . | . . . . Drone Recoveries . | . . . . Exploration | -11 -10 -10 -7 ------------- Run | Yrd Mat Sub Scr Turns Passed 6417 | 33 1281 858 4245 Spaces Moved 4142 | 13 657 554 2918 Core . | . . . . Treads 630 | . 599 31 . Legs 71 | 13 58 . . Wheels 3441 | . . 523 2918 Hover . | . . . . Flight . | . . . . Fastest Speed 100 | 120 120 135 100 Average Speed 137 | 120 156 136 133 Slowest Speed 190 | 120 190 160 145 Overloaded Moves . | . . . . Propulsion Burnouts . | . . . . Robots Hopped . | . . . . Potential Cave-ins . | . . . . Cave-ins Triggered . | . . . . Exploration Rate (%) 53 | 3 93 31 88 Regions Visited 3 Branch Regions 2 Pre-discovered Areas 3 | . 2 . 1 Known Exits Taken . | . . . . Unknown Exits Taken 3 | 1 1 1 . Scrap Searched 8 | . . . 8 Spaces Dug . | . . . . Terrain Destroyed 51 | . 51 . . Melee . | . . . . Projectile . | . . . . AOE 51 | . 51 . . Terrain Rammed . | . . . . Walls Destroyed . | . . . . Machines Disabled . | . . . . Actions | -11 -10 -10 -7 --------- Run | Yrd Mat Sub Scr Total 4724 | 19 786 626 3293 Wait 331 | . 36 40 255 Move 4139 | 12 656 553 2918 Hop . | . . . . Pick Up 75 | . 11 10 54 Fast Attach 8 | 1 2 1 4 Attach 6 | . 3 . 3 Detach 1 | . 1 . . Swap 13 | . 5 5 3 Drop 62 | . 4 2 56 Fire 83 | 6 62 15 . Melee . | . . . . Ram . | . . . . Kick . | . . . . Crush 6 | . 6 . . Escape Stasis . | . . . . Rewire . | . . . . Trap . | . . . . Miscellaneous . | . . . . Route ------- -11/Scrapyard -10/Materials (discovered 5 exits: [*Mat x3] / [*Min] / *Sub) -10/Subcaves (discovered 3 exits: Rec / *Scr x2) -7/Scraptown (discovered 2 exits: [*Fac x2]) History --------- Turn | Location | Event 18 | -11/Scrapyard | Discovered new exit (range 3) 34 | -11/Scrapyard | Entered Materials 35 | -10/Materials | Met a group of wandering Federalists 40 | -10/Materials | Discovered new exit (range 12) 247 | -10/Materials | Discovered new exit (range 16) 303 | -10/Materials | Build established: Mutant 307 | -10/Materials | Learned 2 Storage zone layouts 412 | -10/Materials | Learned 2 Storage zone layouts 451 | -10/Materials | Learned Storage stockpile data 472 | -10/Materials | Discovered new exit (range 10) 530 | -10/Materials | Learned Storage emergency access door positions 559 | -10/Materials | Learned location of Storage (-7) 598 | -10/Materials | Learned location of 1 exit from Storage 740 | -10/Materials | Discovered new exit (range 16) 1051 | -10/Materials | Discovered new exit (range 13) 1315 | -10/Materials | Entered Subcaves 1316 | -10/Subcaves | Continued accompanying wandering Federalists (4) 1316 | -10/Subcaves | Approached by a straggling Scientist 1316 | -10/Subcaves | Identified exit to Recycling 1359 | -10/Subcaves | Shifting Twisted Machinery released Mak. Light Armor Plating 1362 | -10/Subcaves | Shifting Twisted Machinery released Sub. Laser 1436 | -10/Subcaves | A Subdweller sparked back to life 1476 | -10/Subcaves | A swath of the cavern ceiling suddenly collapsed 1663 | -10/Subcaves | Visited 4L-MR0's lab 1946 | -10/Subcaves | Ambushed by angry Subdweller bent on revenge 2173 | -10/Subcaves | Entered Scraptown 2598 | -7/Scraptown | Visited TADAMA 2620 | -7/Scraptown | Visited The Evicted 2640 | -7/Scraptown | Visited Spacefarers 2691 | -7/Scraptown | Scanned Subdweller tech in exchange for log data 2697 | -7/Scraptown | Learned location of Armory (-3) 2703 | -7/Scraptown | Learned Factory terminal intel 2704 | -7/Scraptown | Learned 12 Factory zone layouts 2820 | -7/Scraptown | Visited UFD Registry 2820 | -7/Scraptown | Registered with UFD as "Gammanade" 2840 | -7/Scraptown | Visited Awakened 2911 | -7/Scraptown | Discovered new exit (range 13) 3031 | -7/Scraptown | Guru changed UFD alias to "Waveranger" 3365 | -7/Scraptown | Visited Abandonware Association 3390 | -7/Scraptown | Learned abandonware demo "OVRCLOCK.EXE" 3397 | -7/Scraptown | Learned abandonware demo "ERRANTS.EXE" 3447 | -7/Scraptown | Visited Science Testing Area 3489 | -7/Scraptown | Delivered Scrap Shield to a Scientist 3564 | -7/Scraptown | Visited Botcube Research 3573 | -7/Scraptown | Found Botcube 3766 | -7/Scraptown | Visited Analyses Database 3811 | -7/Scraptown | Visited Scrapoid Pod Storage 3844 | -7/Scraptown | Visited DA-N13 Charitable Foundation 3850 | -7/Scraptown | Found DCF Scrap (30 items) 4114 | -7/Scraptown | Visited Derelict Rescue Squad 4139 | -7/Scraptown | Visited Modified Component R&D 4243 | -7/Scraptown | Visited Science Guys 4285 | -7/Scraptown | Found Scrap Suit 4936 | -7/Scraptown | Botcube activated 4958 | -7/Scraptown | Botcube completed mutation into treaded form, armed with 2 cannons. 5001 | -7/Scraptown | Found Scrapoid Pod 5565 | -7/Scraptown | Visited Cave Peace 5867 | -7/Scraptown | Scrapoid Pod released 07S05-D (x5) 6277 | -7/Scraptown | Found Scrap Suit 6337 | -7/Scraptown | Discovered new exit (range 5) 6418 | -7/Scraptown | Self-destructed Last Messages --------------- 06034_ Acquired Lgt. Nuclear Core. 06036_ Acquired Grenade Launcher. 06039_ Acquired Spread Laser. 06041_ Acquired Ovr. Barrage Gun. 06044_ Acquired Sub. Machine Gun. 06046_ Acquired Spread Laser. 06052_ Acquired Power Maul. 06055_ Acquired Mak. Light Armor Plating. 06057_ Acquired Lgt. Assault Rifle. 06060_ Acquired Imp. EM Pulse Cannon. 06062_ Acquired Med. Matter Pod. 06069_ Dropped Med. Matter Pod. 06135_ Acquired Com. Matter Pod. 06217_ Acquired Nuclear Core. 06221_ Acquired Deuterium Engine. 06225_ Acquired Nuclear Core. 06277_ Acquired Scrap Suit. 06292_ Dropped Hrd. Light Armor Plating. 06293_ Acquired Lgt. Treads. 06337_ EXIT=FOUND Map ----- +----------------------------------------------------+ | ?????##############???????????????????????## ##?? | | ?????#""""""""""""#??########??????????????# #??? | | ?????#"""""""# " "#??""""""""??????????????# #??? | | ?????#" " # #??" & " "??????????????# #??? | | #????#"= #+####?#" "#?????????????# #??" | | #????#" """#?#"" ""#?????????????# #?? | | #????#" "#?#" "#??##########?# #""" | | #????#""""" ""#?#"" ""#??# ##*= #?# #""" | | #????#####" "#?#" "#??# ## *#?# #"" | | #????#""""" X#?#"" ""#??# = *#?# #"" | | #????# = ##?# #??# !] [#?# #"" | | #????# "#?# #??# = /[#?# # | | #????# "#?# #??# == !!=#?# #" | | #????######### ####?###### ###??######*###?# ## # | | ##???????##### ########### ########### ##### ## # | | #???????#"""" """"""""""" """"""""""" """"" "" " | | #???????#" " | | #???????#" " | | #???????#" " | | #???????#" " | | #????####" | | #????"""" """""""""""""""""""""""""""" " | | #???#"""" """""""""""""""""""""""""""" ! " | | #???#"""" ""###### ################"" " | | #???#"""" ""# ##????????#"" " | | #???#"""" ""# 3@s X"#????????#"" " | | ###?#"""" ""# ""s ""s ##????????#"" " | | ""#"#"""" ""# "" "" X"#??????###"" " | | """"#"""" ""# " " ######### #"" " | | ""#######" "" "" | | ###?????#" "" "" " | | #########" ""# " " ######### #"" " | | ""# "" "" ""#??????###"" " | | ""# "" "" ##????????#"" " | | ""# X"?????????#"" " | | ""# ##????????#"" " | | ""###### ################"" " | | """""""""""""""""""""""""""" " | | """""""""""""""""""""""""""" | | " | | " | | " | | #""""#" | | #????#" | | #????#"""""" """"""""""" """"""""""" """""" | | ####????####### ########### ########### ###### | | #?????????# #????"""""??????? ???# | | #?????????# #??? ????# ?# | | #?????????# """"" #??""" """???# # | | #?????????# "###" #??" "???# # | +----------------------------------------------------+ Best States ------------- Heat Dissipation 35 Energy Generation 16 Energy Capacity 290 Matter Stores 300 Matter Capacity 300 Sight Range 16 Terrain Scan Range 16 Terrain Scan Density 10 Evasion (%) 50 Recoil Reduction 2 Defensive Hacking 11 Item Schematics ----------------- None Robot Schematics ------------------ None Fabricated ------------ Nothing Repaired ---------- Nothing Studied --------- None Alien Tech Used ----------------- None Achievements -------------- None Challenges ------------ None Game ------ Seed LargeHardcellExtrapolator Manual? 0 Play Time 00:33:28 Cumulative 387.4 hours Start 2026.04.05 @ 01:48:58 End 2026.04.05 @ 02:24:35 Sessions 1 Manual Loads 0 Difficulty Rogue Special Mode None Game No. 323 Rogue 287 Adventurer 36 Explorer 0 Win Type - Total 5 Types 2/0/0/1/0/0/0/2/0/0 Lore% 73 Gallery% 66 Achievement% 55 Wizard Run 0 Options --------- Layout 1 ASCII 0 Keyboard 0 Movement Numpad Keybinds 0 Fullscreen 1 Font 48/Smallcaps Map View 50x35 Zoom Use 0% Tactical HUD 1 Map Filters NONE Filters NONE Steam 1 RUN: 8743095f-5d2e-471f-98ff-1f5e96dc48db